fUST/lending_fUST_20251027
["ID","MTS","AMOUNT","RATE_DAILY","PERIOD"]
[392475278,1761538831300,150.38460015,0.00015051,2]
[392475280,1761538857811,273.39687844,0.00015062,2]
[392475281,1761539036685,150.38460015,0.00015051,2]
[392475282,1761539037694,194.156103,0.00015068,2]
[392475296,1761539163325,151.0,0.000151,2]
[392475305,1761539231920,150.38460015,0.0001505,2]
[392475496,1761539437417,150.38460015,0.00015049,2]
[392475497,1761539437885,-218.71750276,0.00015108,2]
[392475498,1761539437894,-196.0,0.0001511,2]
[392475499,1761539437904,-1200.0,0.00015148,2]
[392475500,1761539437913,-300.0,0.00015148,2]
[392475501,1761539437922,-163.91691456,0.00015148,2]
[392475502,1761539437996,-136.08308544,0.00015148,2]
[392475503,1761539438005,-167.0,0.00015148,2]
[392475504,1761539438014,-300.0,0.00015148,2]
[392475505,1761539438023,-1200.0,0.00015148,2]
[392475506,1761539438033,-300.0,0.00015148,2]
[392475507,1761539438042,-249.83537089,0.00015148,2]
[392475508,1761539438052,-500.0,0.00015148,2]
[392475509,1761539438062,-573.07670851,0.00015148,2]
[392475510,1761539438072,-50000.0,0.00015149,2]
[392475511,1761539438081,-500.0,0.0001515,2]
[392475512,1761539438090,-500.0,0.0001515,2]
[392475513,1761539438099,-500.0,0.0001515,2]
[392475514,1761539438109,-500.0,0.0001515,2]
[392475515,1761539438119,-160.0,0.0001515,2]
[392475516,1761539438128,-500.0,0.00015151,2]
[392475517,1761539438137,-574.32093693,0.00015151,2]
[392475518,1761539438146,-500.0,0.00015151,2]
[392475519,1761539438155,-500.0,0.00015151,2]
[392475520,1761539438165,-501.69523289,0.00015151,2]
[392475521,1761539438174,-500.0,0.00015151,2]
[392475522,1761539438184,-500.0,0.00015151,2]
[392475523,1761539438193,-200.45782572,0.00015152,2]
[392475524,1761539438202,-26499.3428579,0.00015152,2]
[392475525,1761539438213,-500.0,0.00015152,2]
[392475526,1761539438222,-500.0,0.00015152,2]
[392475527,1761539438231,-500.0,0.00015152,2]
[392475528,1761539438240,-159.5583128,0.00015152,2]
[392475529,1761539438250,-1607.2763299,0.00015152,2]
[392475530,1761539438259,-500.0,0.00015152,2]
[392475531,1761539438269,-500.0,0.00015152,2]
[392475532,1761539438278,-500.0,0.00015152,2]
[392475533,1761539438288,-500.0,0.00015152,2]
[392475534,1761539438298,-500.0,0.00015152,2]
[392475535,1761539438307,-606.86239592,0.00015153,2]
[392475536,1761539438316,-1000.0,0.00015153,2]
[392475537,1761539438325,-151.0,0.00015153,2]
[392475538,1761539438335,-1000.0,0.00015153,2]
[392475539,1761539438345,-151.0,0.00015153,2]
[392475540,1761539438354,-1000.0,0.00015153,2]
[392475541,1761539438364,-151.0,0.00015153,2]
[392475542,1761539438373,-1000.0,0.00015153,2]
[392475543,1761539438382,-151.0,0.00015153,2]
[392475544,1761539438392,-250.0,0.00015153,2]
[392475545,1761539438401,-1000.0,0.00015153,2]
[392475546,1761539438411,-151.0,0.00015153,2]
[392475547,1761539438421,-191.87295522,0.00015153,2]
[392475548,1761539438430,-1000.0,0.00015153,2]
[392475549,1761539438439,-265.82882484,0.00015153,2]
[392475550,1761539438448,-151.0,0.00015153,2]
[392475551,1761539438457,-1000.0,0.00015153,2]
[392475552,1761539438467,-151.0,0.00015153,2]
[392475553,1761539438476,-250.0,0.00015153,2]
[392475554,1761539438484,-1000.0,0.00015153,2]
[392475555,1761539438494,-151.0,0.00015153,2]
[392475556,1761539438503,-250.0,0.00015153,2]
[392475557,1761539438511,-1000.0,0.00015153,2]
[392475558,1761539438520,-151.0,0.00015153,2]
[392475559,1761539438530,-174.76129479,0.00015153,2]
[392475560,1761539438539,-300.18403314,0.00015153,2]
[392475561,1761539438548,-151.0,0.00015153,2]
[392475562,1761539438558,-151.0,0.00015153,2]
[392475563,1761539438567,-151.0,0.00015153,2]
[392475564,1761539438577,-151.0,0.00015153,2]
[392475565,1761539438586,-151.0,0.00015153,2]
[392475566,1761539438596,-151.0,0.00015153,2]
[392475567,1761539438605,-151.0,0.00015153,2]
[392475568,1761539438615,-151.0,0.00015153,2]
[392475569,1761539438624,-390.710368,0.00015153,2]
[392475570,1761539438634,-390.710368,0.00015153,2]
[392475571,1761539438643,-390.710368,0.00015153,2]
[392475572,1761539438652,-390.710368,0.00015153,2]
[392475573,1761539438662,-390.710368,0.00015153,2]
[392475574,1761539438671,-390.710368,0.00015153,2]
[392475575,1761539438679,-390.710368,0.00015153,2]
[392475576,1761539438688,-390.710368,0.00015153,2]
[392475577,1761539438698,-152.410741,0.00015153,2]
[392475578,1761539438707,-152.20996211,0.00015153,2]
[392475579,1761539438716,-386.207959,0.00015153,2]
[392475580,1761539438726,-386.207959,0.00015153,2]
[392475581,1761539438735,-386.207959,0.00015153,2]
[392475582,1761539438744,-386.207959,0.00015153,2]
[392475583,1761539438753,-386.207959,0.00015153,2]
[392475584,1761539438764,-386.207959,0.00015153,2]
[392475585,1761539438775,-386.207959,0.00015153,2]
[392475586,1761539438784,-386.207959,0.00015153,2]
[392475587,1761539438794,-386.207959,0.00015153,2]
[392475588,1761539438803,-386.207959,0.00015153,2]
[392475589,1761539438813,-386.207959,0.00015153,2]
[392475590,1761539438823,-386.207959,0.00015153,2]
[392475591,1761539438832,-151.0,0.00015153,2]
[392475592,1761539438843,-151.0,0.00015153,2]
[392475593,1761539438854,-151.0,0.00015153,2]
[392475594,1761539438864,-151.0,0.00015153,2]
[392475595,1761539438873,-151.0,0.00015153,2]
[392475596,1761539438883,-151.0,0.00015153,2]
[392475597,1761539438892,-151.0,0.00015153,2]
[392475598,1761539438902,-202.727652,0.00015153,2]
[392475599,1761539438913,-249.53339179,0.00015153,2]
[392475600,1761539438922,-216.314925,0.00015153,2]
[392475601,1761539438932,-151.0,0.00015153,2]
[392475602,1761539438941,-151.0,0.00015153,2]
[392475603,1761539438951,-151.0,0.00015153,2]
[392475604,1761539438961,-153.98041359,0.00015153,2]
[392475605,1761539438970,-151.0,0.00015153,2]
[392475606,1761539438980,-151.0,0.00015153,2]
[392475607,1761539438989,-500.0,0.00015153,2]
[392475608,1761539438999,-500.0,0.00015153,2]
[392475609,1761539439009,-500.0,0.00015155,2]
[392475610,1761539439018,-500.0,0.00015155,2]
[392475611,1761539439027,-500.0,0.00015155,2]
[392475612,1761539439037,-151.0,0.00015155,2]
[392475613,1761539439047,-390.710368,0.00015155,2]
[392475614,1761539439056,-390.710368,0.00015155,2]
[392475615,1761539439066,-390.710368,0.00015155,2]
[392475616,1761539439075,-390.710368,0.00015155,2]
[392475617,1761539439085,-386.207959,0.00015155,2]
[392475618,1761539439094,-386.207959,0.00015155,2]
[392475619,1761539439105,-386.207959,0.00015155,2]
[392475620,1761539439115,-386.207959,0.00015155,2]
[392475621,1761539439125,-151.0,0.00015156,2]
[392475622,1761539439134,-500.0,0.00015156,2]
[392475623,1761539439144,-500.0,0.00015157,2]
[392475624,1761539439154,-390.710368,0.00015157,2]
[392475625,1761539439163,-390.710368,0.00015157,2]
[392475626,1761539439174,-390.710368,0.00015157,2]
[392475627,1761539439183,-390.710368,0.00015157,2]
[392475628,1761539439193,-557.47014604,0.00015157,2]
[392475629,1761539439203,-151.0,0.00015157,2]
[392475630,1761539439213,-422.21777482,0.00015157,2]
[392475631,1761539439223,-166.507118,0.00015158,2]
[392475632,1761539439232,-390.710368,0.00015158,2]
[392475633,1761539439242,-390.710368,0.00015158,2]
[392475634,1761539439251,-390.710368,0.00015158,2]
[392475635,1761539439260,-390.710376,0.00015158,2]
[392475636,1761539439269,-386.207959,0.00015158,2]
[392475637,1761539439279,-386.207959,0.00015158,2]
[392475638,1761539439288,-386.207959,0.00015158,2]
[392475639,1761539439297,-386.207957,0.00015158,2]
[392475640,1761539439306,-500.0,0.0001516,2]
[392475641,1761539439316,-500.0,0.00015161,2]
[392475642,1761539439325,-500.0,0.00015161,2]
[392475643,1761539439335,-500.0,0.00015161,2]
[392475644,1761539439344,-500.0,0.00015161,2]
[392475645,1761539439354,-200.0,0.00015161,2]
[392475646,1761539439364,-500.0,0.00015161,2]
[392475647,1761539439373,-500.0,0.00015161,2]
[392475648,1761539439382,-500.0,0.00015161,2]
[392475649,1761539439391,-500.0,0.00015161,2]
[392475650,1761539439400,-317.58454303,0.00015161,2]
[392475651,1761539439409,-151.0,0.00015161,2]
[392475652,1761539439418,-500.0,0.00015163,2]
[392475653,1761539439428,-500.0,0.00015163,2]
[392475654,1761539439436,-500.0,0.00015166,2]
[392475655,1761539439446,-4000.0,0.000152,2]
[392475656,1761539439455,-500.0,0.000152,2]
[392475657,1761539439464,-154.5705769,0.00015208,2]
[392475658,1761539439473,-152.92956916,0.00015208,2]
[392475659,1761539439481,-151.0,0.00015208,2]
[392475660,1761539439490,-151.0,0.00015208,2]
[392475661,1761539439499,-500.0,0.00015208,2]
[392475662,1761539439509,-500.0,0.00015208,2]
[392475663,1761539439518,-151.0,0.00015263,2]
[392475664,1761539439527,-238.12127394,0.00015263,2]
[392475665,1761539439536,-500.0,0.00015263,2]
[392475666,1761539439546,-500.0,0.00015263,2]
[392475667,1761539439555,-274.85776277,0.00015296,2]
[392475668,1761539439564,-204.20759983,0.00015317,2]
[392475669,1761539439573,-500.0,0.00015317,2]
[392475670,1761539439588,-514.64060395,0.00015317,2]
[392475671,1761539439599,-500.0,0.00015326,2]
[392475672,1761539439608,-500.0,0.00015355,2]
[392475673,1761539439617,-5000.0,0.00015356,2]
[392475674,1761539439626,-316.29443917,0.00015372,2]
[392475675,1761539439636,-500.0,0.0001544,2]
[392475676,1761539439645,-3029.28686839,0.00015466,2]
[392475677,1761539439655,-196.0,0.00015484,2]
[392475678,1761539439664,-300.0,0.00015503,2]
[392475679,1761539439673,-300.0,0.00015503,2]
[392475680,1761539439682,-300.0,0.00015503,2]
[392475681,1761539439690,-300.0,0.00015503,2]
[392475682,1761539439699,-300.0,0.00015503,2]
[392475683,1761539439708,-300.0,0.00015503,2]
[392475684,1761539439717,-300.0,0.00015503,2]
[392475685,1761539439726,-300.0,0.00015503,2]
[392475686,1761539439735,-300.0,0.00015503,2]
[392475687,1761539439744,-300.0,0.00015503,2]
[392475688,1761539439753,-300.0,0.00015503,2]
[392475689,1761539439764,-300.0,0.00015503,2]
[392475690,1761539439775,-300.0,0.00015503,2]
[392475691,1761539439784,-300.0,0.00015503,2]
[392475692,1761539439803,-300.0,0.00015503,2]
[392475693,1761539439813,-198.97225457,0.00015701,2]
[392475694,1761539439822,-500.0,0.00015714,2]
[392475695,1761539439831,-800.0,0.00015726,2]
[392475696,1761539439841,-800.0,0.00015739,2]
[392475697,1761539439851,-800.0,0.00015742,2]
[392475698,1761539439861,-800.0,0.00015749,2]
[392475699,1761539439870,-800.0,0.00015751,2]
[392475701,1761539439879,-800.0,0.00015751,2]
[392475703,1761539439888,-800.0,0.00015755,2]
[392475705,1761539439897,-800.0,0.00015763,2]
[392475707,1761539439906,-800.0,0.00015772,2]
[392475708,1761539439915,-500.0,0.00015776,2]
[392475710,1761539439924,-500.0,0.00015781,2]
[392475712,1761539439933,-912.3076839,0.00015794,2]
[392475714,1761539439942,-1000.0,0.000158,2]
[392475716,1761539439951,-600.0,0.00015812,2]
[392475717,1761539439960,-800.0,0.00015814,2]
[392475718,1761539439969,-800.0,0.00015814,2]
[392475719,1761539439979,-800.0,0.00015815,2]
[392475720,1761539439989,-800.0,0.00015817,2]
[392475721,1761539439998,-800.0,0.00015849,2]
[392475722,1761539440007,-196.0,0.00015858,2]
[392475723,1761539440016,-151.0,0.000159,2]
[392475725,1761539440025,-151.0,0.000159,2]
[392475727,1761539440035,-151.0,0.000159,2]
[392475728,1761539440044,-151.0,0.000159,2]
[392475729,1761539440054,-800.0,0.00015951,2]
[392475731,1761539440063,-800.0,0.00015964,2]
[392475732,1761539440072,-800.0,0.00015974,2]
[392475733,1761539440082,-800.0,0.0001598,2]
[392475734,1761539440091,-500.0,0.00015988,2]
[392475735,1761539440101,-218.71750272,0.00015988,2]
[392475736,1761539440111,-168.0,0.00016015,2]
[392475737,1761539440120,-399.3068517,0.00016027,2]
[392475738,1761539440129,-168.0,0.00016107,2]
[392475739,1761539440138,-196.0,0.00016231,2]
[392475740,1761539440147,-194.19228944,0.00016249,2]
[392475741,1761539440157,-500.0,0.00016262,2]
[392475742,1761539440167,-1000.0,0.00016296,2]
[392475744,1761539440176,-168.0,0.00016409,2]
[392475746,1761539440185,-263.0,0.00016437,2]
[392475747,1761539440194,-500.0,0.00016438,2]
[392475748,1761539440203,-151.0,0.00016438,2]
[392475749,1761539440213,-151.0,0.00016438,2]
[392475750,1761539440222,-151.0,0.00016438,2]
[392475751,1761539440232,-155.650077,0.00016438,2]
[392475752,1761539440241,-151.931543,0.00016438,2]
[392475753,1761539440374,-156.144517,0.00016438,2]
[392475754,1761539440384,-257.0828989,0.00016438,2]
[392475755,1761539440393,-263.0,0.00016529,2]
[392475756,1761539440404,-500.0,0.00016536,2]
[392475757,1761539440415,-202.75889965,0.00016553,2]
[392475758,1761539440424,-1680.0,0.00016576,2]
[392475759,1761539440433,-420.0,0.00016576,2]
[392475760,1761539440442,-420.0,0.00016576,2]
[392475761,1761539440451,-420.0,0.00016576,2]
[392475762,1761539440460,-420.0,0.00016576,2]
[392475763,1761539440470,-385.690374,0.00016581,2]
[392475764,1761539440479,-346.54126626,0.00016595,2]
[392475765,1761539440488,-196.0,0.00016605,2]
[392475766,1761539440497,-529.70828846,0.00016646,2]
[392475767,1761539440506,-1680.0,0.0001666,2]
[392475768,1761539440515,-263.0,0.00016685,2]
[392475769,1761539440524,-151.0,0.000167,2]
[392475770,1761539440534,-151.0,0.000167,2]
[392475771,1761539440543,-151.0,0.000167,2]
[392475772,1761539440552,-151.0,0.000167,2]
[392475773,1761539440562,-153.7388208,0.0001674,2]
[392475774,1761539440571,-318.7828917,0.0001674,2]
[392475775,1761539440580,-263.0,0.00016757,2]
[392475776,1761539440589,-1607.2763299,0.00016797,2]
[392475777,1761539440598,-1000.0,0.000168,3]
[392475778,1761539440608,-331.0,0.00016802,2]
[392475779,1761539440617,-500.0,0.0001681,2]
[392475780,1761539440626,-500.0,0.00016811,2]
[392475781,1761539440636,-158.66358654,0.00016811,2]
[392475782,1761539440646,-500.0,0.00016811,2]
[392475783,1761539440655,-352.43296045,0.00016811,2]
[392475784,1761539440664,-500.0,0.00016811,2]
[392475785,1761539440673,-500.0,0.00016811,2]
[392475786,1761539440683,-500.0,0.00016811,2]
[392475787,1761539440692,-218.71750272,0.00016868,2]
[392475788,1761539440701,-196.0,0.00016979,2]
[392475789,1761539440710,-151.0,0.00016986,2]
[392475790,1761539440719,-151.0,0.00016986,2]
[392475791,1761539440728,-151.0,0.00016986,2]
[392475792,1761539440737,-151.0,0.00016986,2]
[392475793,1761539440747,-151.0,0.00016986,2]
[392475794,1761539440755,-151.0,0.00016986,2]
[392475795,1761539440767,-151.0,0.00016986,2]
[392475796,1761539440776,-151.0,0.00016986,2]
[392475797,1761539440785,-200.0,0.00016989,2]
[392475798,1761539440794,-500.0,0.00016989,2]
[392475799,1761539440803,-500.0,0.00016989,2]
[392475800,1761539440814,-500.0,0.00016989,2]
[392475801,1761539440823,-500.0,0.00016989,2]
[392475802,1761539440832,-500.0,0.00016989,2]
[392475803,1761539440844,-100000.0,0.0001699,2]
[392475804,1761539440853,-200.0,0.00016999,2]
[392475805,1761539440863,-500.0,0.00016999,2]
[392475806,1761539440872,-20034.76997273,0.00017,2]
[392475807,1761539440880,-500.0,0.00017084,2]
[392475808,1761539440889,-500.0,0.00017124,2]
[392475809,1761539440899,-263.0,0.00017137,2]
[392475810,1761539440908,-263.0,0.00017158,2]
[392475811,1761539440917,-168.0,0.00017161,2]
[392475812,1761539440927,-180.0,0.00017203,2]
[392475813,1761539440936,-168.0,0.00017245,2]
[392475814,1761539440945,-500.0,0.00017256,2]
[392475815,1761539440955,-501.31423589,0.00017256,2]
[392475816,1761539440963,-500.0,0.00017256,2]
[392475817,1761539440973,-503.02510192,0.00017256,2]
[392475818,1761539440982,-500.0,0.00017256,2]
[392475819,1761539440991,-500.0,0.00017256,2]
[392475820,1761539441000,-500.0,0.00017256,2]
[392475821,1761539441008,-500.0,0.00017256,2]
[392475822,1761539441018,-500.31472202,0.00017256,2]
[392475823,1761539441027,-299.0786912,0.0001726,2]
[392475824,1761539441036,-163.5321218,0.0001726,2]
[392475825,1761539441045,-590.7831713,0.0001726,2]
[392475826,1761539441054,-299.0786912,0.0001726,2]
[392475827,1761539441063,-163.5321218,0.0001726,2]
[392475828,1761539441071,-590.7831713,0.0001726,2]
[392475829,1761539441081,-163.5321218,0.0001726,2]
[392475830,1761539441091,-299.0786912,0.0001726,2]
[392475831,1761539441101,-590.7831713,0.0001726,2]
[392475832,1761539441109,-163.5321218,0.0001726,2]
[392475833,1761539441118,-299.0786912,0.0001726,2]
[392475834,1761539441127,-590.7831713,0.0001726,2]
[392475835,1761539441136,-163.5321218,0.0001726,2]
[392475836,1761539441145,-590.7831713,0.0001726,2]
[392475837,1761539441154,-263.0,0.00017265,2]
[392475838,1761539441163,-196.0,0.00017353,2]
[392475839,1761539441172,-500.0,0.00017358,2]
[392475840,1761539441181,-501.7288472,0.00017359,2]
[392475841,1761539441190,-1000.0,0.00017359,2]
[392475842,1761539441199,-1000.0,0.00017359,2]
[392475843,1761539441209,-509.31741604,0.00017359,2]
[392475844,1761539441218,-400.27628078,0.00017359,2]
[392475845,1761539441227,-269.77606365,0.00017392,2]
[392475846,1761539441236,-720.0,0.00017393,2]
[392475847,1761539441245,-2359.0,0.00017456,2]
[392475848,1761539441255,-263.0,0.00017587,2]
[392475849,1761539441264,-151.0,0.000176,2]
[392475850,1761539441274,-151.0,0.000176,2]
[392475851,1761539441283,-151.0,0.000176,2]
[392475852,1761539441292,-151.0,0.000176,2]
[392475853,1761539441301,-151.0,0.000176,2]
[392475854,1761539441311,-3000.0,0.00017617,2]
[392475855,1761539441320,-632.0,0.00017628,2]
[392475856,1761539441330,-984.0,0.00017628,2]
[392475857,1761539441339,-2166.0,0.00017628,2]
[392475858,1761539441348,-412.0,0.00017628,2]
[392475859,1761539441358,-500.0,0.00017632,2]
[392475860,1761539441367,-528.56826245,0.00017632,2]
[392475861,1761539441376,-202.75889965,0.00017646,3]
[392475862,1761539441385,-500.0,0.00017672,2]
[392475863,1761539441394,-500.0,0.00017672,2]
[392475864,1761539441403,-500.0,0.00017672,2]
[392475865,1761539441413,-500.0,0.00017672,2]
[392475866,1761539441422,-306.27622972,0.00017672,2]
[392475867,1761539441431,-196.0,0.00017726,2]
[392475868,1761539441440,-218.71750272,0.00017747,2]
[392475869,1761539441450,-2359.0,0.00017775,2]
[392475870,1761539441459,-1000.0,0.00017804,2]
[392475871,1761539441467,-307.06220975,0.00017804,2]
[392475872,1761539441476,-1000.86782823,0.00017804,2]
[392475873,1761539441485,-1006.38913373,0.00017804,2]
[392475874,1761539441494,-1000.0,0.00017804,2]
[392475875,1761539441503,-1000.0,0.00017804,2]
[392475876,1761539441512,-209.01341564,0.00017813,2]
[392475877,1761539441521,-387.49322574,0.00017814,2]
[392475878,1761539441530,-500.0,0.00017814,2]
[392475879,1761539441540,-500.51379686,0.00017814,2]
[392475880,1761539441549,-500.0,0.00017814,2]
[392475881,1761539441558,-500.47398364,0.00017814,2]
[392475882,1761539441567,-500.0,0.00017814,2]
[392475883,1761539441576,-500.0,0.00017814,2]
[392475884,1761539441585,-502.28660279,0.00017814,2]
[392475885,1761539441594,-322.6952299,0.00017863,2]
[392475886,1761539441602,-1168.1226142,0.00017863,2]
[392475887,1761539441612,-500.0,0.00017905,2]
[392475888,1761539441620,-1500.0,0.00017907,2]
[392475889,1761539441630,-1454.31161029,0.00017907,2]
[392475890,1761539441638,-2359.0,0.00017915,2]
[392475891,1761539441647,-810.48092676,0.00017996,2]
[392475892,1761539441656,-46550.60452495,0.00018,2]
[392475893,1761539441665,-5132.69482737,0.00018,2]
[392475894,1761539441674,-22689.72336146,0.00018,2]
[392475895,1761539441683,-500.0,0.00018015,2]
[392475896,1761539441692,-504.88770253,0.00018015,2]
[392475897,1761539441701,-500.0,0.00018015,2]
[392475898,1761539441712,-501.27784309,0.00018015,2]
[392475899,1761539441721,-500.0,0.00018015,2]
[392475900,1761539441731,-500.0,0.00018015,2]
[392475901,1761539441740,-500.0,0.00018015,2]
[392475902,1761539441749,-214.96979064,0.00018015,2]
[392475903,1761539441758,-500.0,0.00018015,2]
[392475904,1761539441772,-500.0,0.00018015,2]
[392475905,1761539441781,-500.0,0.00018015,2]
[392475906,1761539441790,-500.0,0.00018015,2]
[392475907,1761539441799,-500.59682022,0.00018015,2]
[392475908,1761539441809,-500.0,0.00018015,2]
[392475909,1761539441818,-169.96849635,0.00018015,2]
[392475910,1761539441826,-500.0,0.00018015,2]
[392475911,1761539441835,-500.0,0.00018015,2]
[392475912,1761539441844,-500.0,0.00018015,2]
[392475913,1761539441853,-208.60736094,0.00018015,2]
[392475914,1761539441862,-500.0,0.00018015,2]
[392475915,1761539441871,-502.50164795,0.00018015,2]
[392475916,1761539441881,-474.9686123,0.00018015,2]
[392475917,1761539441890,-500.0,0.00018015,2]
[392475918,1761539441899,-500.0,0.00018015,2]
[392475919,1761539441908,-500.0,0.00018015,2]
[392475920,1761539441917,-500.0,0.00018015,2]
[392475921,1761539441926,-230.3640798,0.00018015,2]
[392475922,1761539441934,-500.0,0.00018015,2]
[392475923,1761539441943,-500.0,0.00018015,2]
[392475924,1761539441954,-500.0,0.00018015,2]
[392475925,1761539441963,-500.0,0.00018015,2]
[392475926,1761539441972,-500.0,0.00018015,2]
[392475927,1761539441981,-377.13492729,0.000181,2]
[392475928,1761539441990,-2351.0,0.00018139,2]
[392475929,1761539441999,-587.0,0.00018139,2]
[392475930,1761539442008,-587.0,0.00018139,2]
[392475931,1761539442017,-587.0,0.00018139,2]
[392475932,1761539442025,-587.0,0.00018139,2]
[392475933,1761539442035,-500.0,0.00018179,2]
[392475934,1761539442044,-443.48325397,0.000182,2]
[392475940,1761539446101,-293.6760081,0.0001674,2]
[392475941,1761539446110,-168.0,0.00017867,2]
[392475942,1761539446119,-500.0,0.00018015,2]
[392475943,1761539446128,-500.0,0.00018015,2]
[392475944,1761539446137,-2556.51674603,0.000182,2]
[392475945,1761539446147,-3000.0,0.0001821,2]
[392475946,1761539446156,-3000.0,0.0001822,2]
[392475947,1761539446165,-268.17232157,0.0001822,2]
[392475948,1761539446175,-3000.0,0.0001823,2]
[392475949,1761539446184,-3000.0,0.0001824,2]
[392475950,1761539446194,-394.57910739,0.0001825,2]
[392475961,1761539605278,617.12205,0.00013699,2]
[392475978,1761539781649,1000.0,0.00014449,2]
[392475985,1761540027853,166.898526,0.00030137,120]
[392475989,1761540233411,2029.26,0.000151,2]
[392476237,1761540638205,-196.0,0.0001511,2]
[392476238,1761540638215,-178.767,0.00015153,2]
[392476239,1761540638224,-196.0,0.00015359,2]
[392476240,1761540638233,-1068.33333616,0.00015405,2]
[392476241,1761540638243,-151.0,0.00015439,2]
[392476242,1761540638252,-164.0603681,0.00015439,2]
[392476243,1761540638262,-1200.0,0.00015443,2]
[392476244,1761540638271,-174.88475962,0.00015444,2]
[392476245,1761540638280,-500.0,0.00015444,2]
[392476246,1761540638290,-500.0,0.00015444,2]
[392476247,1761540638299,-500.0,0.00015444,2]
[392476248,1761540638313,-500.0,0.00015444,2]
[392476249,1761540638323,-500.0,0.00015444,2]
[392476250,1761540638332,-294.41558653,0.00015444,2]
[392476251,1761540638342,-215.02499215,0.00015444,2]
[392476252,1761540638354,-284.97500785,0.00015444,2]
[392476253,1761540638363,-474.24222148,0.00015444,2]
[392476254,1761540638373,-500.0,0.00015444,2]
[392476255,1761540638386,-500.0,0.00015444,2]
[392476256,1761540638395,-500.0,0.00015444,2]
[392476257,1761540638405,-500.0,0.00015444,2]
[392476258,1761540638414,-500.0,0.00015444,2]
[392476259,1761540638424,-500.0,0.00015444,2]
[392476260,1761540638434,-500.0,0.00015444,2]
[392476261,1761540638444,-500.0,0.00015444,2]
[392476262,1761540638453,-500.0,0.00015444,2]
[392476263,1761540638463,-500.0,0.00015444,2]
[392476264,1761540638472,-195.9592104,0.00015444,2]
[392476265,1761540638482,-500.0,0.00015444,2]
[392476266,1761540638492,-500.0,0.00015444,2]
[392476267,1761540638502,-500.0,0.00015444,2]
[392476268,1761540638512,-500.0,0.00015444,2]
[392476269,1761540638522,-776.0,0.00015444,2]
[392476270,1761540638531,-300.0,0.00015444,2]
[392476271,1761540638541,-300.0,0.00015444,2]
[392476272,1761540638551,-300.0,0.00015444,2]
[392476273,1761540638560,-300.0,0.00015444,2]
[392476274,1761540638570,-38612.47127731,0.00015445,2]
[392476275,1761540638581,-11387.52872269,0.00015445,2]
[392476276,1761540638591,-267.08192463,0.00015445,2]
[392476277,1761540638600,-160.0,0.00015446,2]
[392476278,1761540638610,-300.0,0.0001545,2]
[392476279,1761540638619,-300.0,0.0001545,2]
[392476280,1761540638629,-300.0,0.0001545,2]
[392476281,1761540638638,-300.0,0.0001545,2]
[392476282,1761540638647,-300.0,0.0001545,2]
[392476283,1761540638657,-300.0,0.0001545,2]
[392476284,1761540638666,-300.0,0.0001545,2]
[392476285,1761540638676,-300.0,0.0001545,2]
[392476286,1761540638685,-300.0,0.0001545,2]
[392476287,1761540638694,-300.0,0.0001545,2]
[392476288,1761540638704,-300.0,0.0001545,2]
[392476289,1761540638713,-300.0,0.0001545,2]